fUST/lending_fUST_20250214
["ID","MTS","AMOUNT","RATE_DAILY","PERIOD"]
[353040272,1739511032173,-562.56456364,0.00013829,2]
[353040273,1739511032182,-500.0,0.00013829,2]
[353040274,1739511032191,-500.0,0.00013829,2]
[353040275,1739511032201,-500.0,0.00013829,2]
[353040276,1739511032210,-500.0,0.00013829,2]
[353040277,1739511032219,-500.0,0.00013829,2]
[353040278,1739511032229,-500.0,0.00013829,2]
[353040279,1739511032240,-500.0,0.00013829,2]
[353040280,1739511032250,-500.0,0.00013829,2]
[353040281,1739511032260,-500.0,0.00013829,2]
[353040282,1739511032269,-500.0,0.00013829,2]
[353040283,1739511032278,-500.0,0.00013829,2]
[353040284,1739511032288,-500.14,0.00013829,2]
[353040285,1739511032297,-500.0,0.00013829,2]
[353040286,1739511032306,-341.62805434,0.00013829,2]
[353040287,1739511032318,-158.37194566,0.00013829,2]
[353040288,1739511032327,-500.0,0.00013829,2]
[353040289,1739511032336,-500.0,0.00013829,2]
[353040290,1739511032346,-500.0,0.00013829,2]
[353040291,1739511032355,-500.0,0.00013829,2]
[353040292,1739511032364,-1729.38,0.00013829,2]
[353040293,1739511032374,-500.0,0.00013829,2]
[353040294,1739511032383,-500.0,0.00013829,2]
[353040295,1739511032393,-500.0,0.00013829,2]
[353040296,1739511032403,-642.86,0.00013829,2]
[353040297,1739511032413,-500.0,0.00013829,2]
[353040298,1739511032422,-500.0,0.00013829,2]
[353040299,1739511032432,-500.0,0.00013829,2]
[353040300,1739511032442,-500.0,0.00013829,2]
[353040301,1739511032452,-500.0,0.00013829,2]
[353040302,1739511032461,-500.0,0.00013829,2]
[353040303,1739511032471,-500.0,0.00013829,2]
[353040304,1739511032481,-500.0,0.00013829,2]
[353040305,1739511032490,-500.0,0.00013829,2]
[353040306,1739511032500,-500.0,0.00013829,2]
[353040307,1739511032509,-281.22814296,0.00013829,2]
[353040308,1739511032520,-500.0,0.00013829,2]
[353040309,1739511032529,-5106.19,0.00013829,2]
[353040310,1739511032538,-500.0,0.0001383,2]
[353040311,1739511032547,-500.0,0.0001383,2]
[353040312,1739511032557,-500.0,0.0001383,2]
[353040313,1739511032566,-500.0,0.0001383,2]
[353040314,1739511032575,-511.4203264,0.0001383,2]
[353040315,1739511032585,-500.0,0.0001383,2]
[353040316,1739511032594,-500.0,0.0001383,2]
[353040317,1739511032604,-500.0,0.0001383,2]
[353040318,1739511032613,-500.0,0.0001383,2]
[353040319,1739511032623,-500.0,0.0001383,2]
[353040320,1739511032632,-500.0,0.0001383,2]
[353040321,1739511032641,-500.0,0.0001383,2]
[353040322,1739511032650,-500.0,0.0001383,2]
[353040323,1739511032777,-500.0,0.0001383,2]
[353040324,1739511032820,-501.81521135,0.0001383,2]
[353040325,1739511032829,-500.0,0.0001383,2]
[353040326,1739511032838,-500.0,0.0001383,2]
[353040327,1739511032847,-500.0,0.0001383,2]
[353040328,1739511032857,-500.0,0.0001383,2]
[353040329,1739511032866,-502.43926089,0.0001383,2]
[353040330,1739511032875,-500.0,0.0001383,2]
[353040331,1739511032884,-500.0,0.0001383,2]
[353040332,1739511032894,-500.0,0.0001383,2]
[353040333,1739511032903,-500.0,0.0001383,2]
[353040334,1739511032914,-251.88069311,0.0001383,2]
[353040335,1739511032923,-501.18882861,0.0001383,2]
[353040336,1739511032932,-335.6025772,0.0001383,2]
[353040337,1739511032942,-500.59758062,0.0001383,2]
[353040338,1739511032951,-508.57335502,0.00013831,2]
[353040339,1739511032961,-500.0,0.00013831,2]
[353040340,1739511032971,-159.372321,0.00013846,5]
[353040341,1739511032980,-3361.61,0.0001391,2]
[353040342,1739511032990,-500.0,0.0001391,2]
[353040343,1739511033000,-500.0,0.0001391,2]
[353040344,1739511033009,-500.0,0.0001391,2]
[353040345,1739511033019,-500.0,0.0001391,2]
[353040346,1739511033029,-575.12,0.0001391,2]
[353040347,1739511033038,-2784.73,0.0001391,2]
[353040348,1739511033047,-500.0,0.0001391,2]
[353040349,1739511033057,-500.0,0.00013912,2]
[353040350,1739511033070,-500.0,0.00013912,2]
[353040351,1739511033081,-500.14,0.00013912,2]
[353040352,1739511033091,-500.0,0.00013912,2]
[353040353,1739511033102,-500.0,0.00013912,2]
[353040354,1739511033112,-500.0,0.00013912,2]
[353040355,1739511033122,-500.0,0.00013912,2]
[353040356,1739511033132,-1729.38,0.00013912,2]
[353040357,1739511033142,-500.0,0.00013912,2]
[353040358,1739511033152,-500.0,0.00013912,2]
[353040359,1739511033162,-500.0,0.00013912,2]
[353040360,1739511033172,-500.0,0.00013912,2]
[353040361,1739511033182,-478.14648551,0.00013912,2]
[353040362,1739511033196,-21.85351449,0.00013912,2]
[353040363,1739511033207,-500.0,0.00013912,2]
[353040364,1739511033217,-500.0,0.00013912,2]
[353040365,1739511033227,-500.0,0.00013912,2]
[353040366,1739511033237,-500.0,0.00013912,2]
[353040367,1739511033246,-424.28864935,0.00013912,2]
[353040368,1739511033258,-577.51861809,0.00013912,2]
[353040369,1739511033269,-4104.38273256,0.00013912,2]
[353040370,1739511033279,-3361.61,0.00013993,2]
[353040371,1739511033289,-500.0,0.00013993,2]
[353040372,1739511033298,-500.0,0.00013993,2]
[353040373,1739511033308,-575.12,0.00013993,2]
[353040374,1739511033318,-2769.45801819,0.00013993,2]
[353040375,1739511033330,-15.27198181,0.00013993,2]
[353040376,1739511033340,-500.0,0.00013993,2]
[353040377,1739511033350,-500.0,0.00013994,2]
[353040378,1739511033360,-500.0,0.00013994,2]
[353040379,1739511033370,-500.14,0.00013994,2]
[353040380,1739511033380,-500.0,0.00013994,2]
[353040381,1739511033390,-500.0,0.00013994,2]
[353040382,1739511033401,-500.0,0.00013994,2]
[353040383,1739511033411,-234.81301819,0.00013994,2]
[353040395,1739511037813,-309.8,0.00013829,2]
[353040396,1739511037825,-190.2,0.00013829,2]
[353040397,1739511037834,-500.0,0.00013912,2]
[353040398,1739511037844,-1494.56698181,0.00013994,2]
[353040399,1739511037854,-500.0,0.00013994,2]
[353040400,1739511037863,-500.0,0.00013994,2]
[353040401,1739511037873,-500.0,0.00013994,2]
[353040402,1739511037882,-500.0,0.00013994,2]
[353040403,1739511037892,-500.0,0.00013994,2]
[353040404,1739511037902,-500.0,0.00013994,2]
[353040405,1739511037911,-500.0,0.00013994,2]
[353040406,1739511037921,-500.0,0.00013994,2]
[353040407,1739511037930,-500.0,0.00013994,2]
[353040408,1739511037940,-4591.58837403,0.00013994,2]
[353040457,1739511040599,-507.43603144,0.00013994,2]
[353040688,1739511042860,-500.0,0.00013828,2]
[353040690,1739511042869,-2941.41,0.00013828,2]
[353040692,1739511042879,-500.0,0.0001391,2]
[353040694,1739511042888,-1961.06918616,0.0001391,2]
[353040698,1739511042923,-980.34081384,0.0001391,2]
[353040700,1739511042932,-500.0,0.00013993,2]
[353040702,1739511042942,-2941.41,0.00013993,2]
[353040705,1739511042952,-7.16559453,0.00013994,2]
[353040707,1739511042961,-500.0,0.00013994,2]
[353040709,1739511042970,-500.0,0.00014075,2]
[353040711,1739511042980,-500.0,0.00014075,2]
[353040713,1739511042989,-575.12,0.00014075,2]
[353040715,1739511042999,-2784.73,0.00014075,2]
[353040716,1739511043008,-500.0,0.00014075,2]
[353040719,1739511043018,-500.0,0.00014075,2]
[353040722,1739511043027,-2941.41,0.00014075,2]
[353040725,1739511043036,-500.0,0.00014076,2]
[353040728,1739511043045,-500.0,0.00014076,2]
[353040731,1739511043055,-500.0,0.00014076,2]
[353040734,1739511043064,-500.0,0.00014076,2]
[353040737,1739511043074,-1729.38,0.00014076,2]
[353040740,1739511043083,-500.0,0.00014076,2]
[353040742,1739511043092,-524.16995354,0.00014076,2]
[353040744,1739511043102,-500.0,0.00014076,2]
[353040746,1739511043111,-500.0,0.00014076,2]
[353040748,1739511043121,-500.0,0.00014076,2]
[353040750,1739511043130,-500.0,0.00014076,2]
[353040752,1739511043139,-500.0,0.00014076,2]
[353040754,1739511043148,-167.03,0.00014076,2]
[353040756,1739511043157,-500.0,0.00014076,2]
[353040758,1739511043166,-624.53419411,0.00014076,2]
[353040760,1739511043178,-691.15,0.00014076,2]
[353040762,1739511043189,-872.23335984,0.00014076,2]
[353040765,1739511043199,-800.88,0.00014076,2]
[353040999,1739511045788,-2117.39244605,0.00014076,2]
[353041001,1739511045798,-500.0,0.00014076,2]
[353041003,1739511045807,-500.0,0.00014089,2]
[353041005,1739511045817,-159.372321,0.00014112,5]
[353041007,1739511045826,-500.0,0.00014157,2]
[353041009,1739511045835,-500.0,0.00014157,2]
[353041011,1739511045845,-575.12,0.00014157,2]
[353041013,1739511045855,-2784.73,0.00014157,2]
[353041015,1739511045865,-500.0,0.00014157,2]
[353041017,1739511045875,-500.0,0.00014157,2]
[353041019,1739511045884,-2941.41,0.00014157,2]
[353041021,1739511045893,-500.0,0.00014158,2]
[353041023,1739511045902,-284.2,0.00014158,2]
[353041024,1739511045912,-500.0,0.00014158,2]
[353041027,1739511045921,-500.0,0.00014158,2]
[353041029,1739511045931,-1729.38,0.00014158,2]
[353041031,1739511045941,-500.0,0.00014158,2]
[353041033,1739511045950,-500.0,0.00014158,2]
[353041034,1739511045961,-500.0,0.00014158,2]
[353041036,1739511045970,-500.0,0.00014158,2]
[353041038,1739511045979,-500.0,0.00014158,2]
[353041039,1739511045988,-500.0,0.00014158,2]
[353041041,1739511045998,-500.0,0.00014158,2]
[353041043,1739511046007,-842.54394237,0.00014158,2]
[353041890,1739511994137,-164.84440072,0.00010578,2]
[353041951,1739512232191,-212.022835,0.00010685,2]
[353041953,1739512232201,-500.0,0.00013828,2]
[353041955,1739512232210,-171.43319444,0.00013828,2]
[353041957,1739512232222,-328.56680556,0.00013828,2]
[353041959,1739512232232,-501.96797484,0.00013828,2]
[353041961,1739512232241,-300.0,0.0001399,2]
[353041963,1739512232251,-500.0,0.00013991,2]
[353041965,1739512232264,-500.0,0.00013991,2]
[353041967,1739512232275,-211.7652196,0.00013991,2]
[353041969,1739512232302,-206.7547804,0.00013991,2]
[353041971,1739512232315,-114.30652004,0.00013991,2]
[353042011,1739512237903,-385.69347996,0.00013991,2]
[353042012,1739512237912,-500.0,0.00013991,2]
[353042013,1739512237921,-500.0,0.00013991,2]
[353042014,1739512237931,-193.83558802,0.00013991,2]
[353042015,1739512237940,-500.0,0.00013991,2]
[353042016,1739512237950,-482.9830905,0.00013991,2]
[353042017,1739512237960,-500.0,0.00013991,2]
[353042018,1739512237969,-668.59753112,0.00013991,2]
[353042019,1739512238015,-531.96040214,0.00013991,2]
[353042025,1739512240671,-400.0,0.00013991,2]
[353042026,1739512240730,-604.02206674,0.00013991,2]
[353042027,1739512240740,-500.0,0.00013991,2]
[353042028,1739512240749,-87.88554558,0.00013991,2]
[353042056,1739512243277,-412.11445442,0.00013991,2]
[353042057,1739512243287,-3513.80187201,0.00013991,2]
[353042058,1739512243346,-706.24812799,0.00013991,2]
[353042059,1739512243356,-500.0,0.00013991,2]
[353042060,1739512243367,-1547.16,0.00013991,2]
[353042061,1739512243377,-10000.0,0.00014,2]
[353042062,1739512243387,-10000.0,0.00014,2]
[353042063,1739512243396,-10000.0,0.00014,2]
[353042064,1739512243405,-10000.0,0.00014,2]
[353042065,1739512243415,-10000.0,0.00014,2]
[353042066,1739512243425,-10286.0,0.00014,5]
[353042067,1739512243434,-10000.0,0.00014,5]
[353042068,1739512243444,-10008.0,0.00014,5]
[353042069,1739512243453,-5382.0,0.00014,5]
[353042070,1739512243463,-500.0,0.00014073,2]
[353042071,1739512243472,-500.0,0.00014073,2]
[353042072,1739512243481,-500.0,0.00014073,2]
[353042073,1739512243491,-627.16113791,0.00014073,2]
[353042074,1739512243500,-500.0,0.00014073,2]
[353042075,1739512243510,-2204.58,0.00014073,2]
[353042076,1739512243520,-500.0,0.00014073,2]
[353042077,1739512243529,-500.0,0.00014073,2]
[353042078,1739512243540,-4220.05,0.00014073,2]
[353042079,1739512243549,-434.87,0.00014073,2]
[353042080,1739512243558,-1547.16,0.00014073,2]
[353042081,1739512243567,-500.0,0.00014089,2]
[353042082,1739512243577,-500.0,0.00014154,2]
[353042083,1739512243586,-500.0,0.00014154,2]
[353042084,1739512243596,-2401.93,0.00014154,2]
[353042085,1739512243606,-500.0,0.00014154,2]
[353042086,1739512243616,-500.0,0.00014154,2]
[353042087,1739512243627,-500.0,0.00014154,2]
[353042088,1739512243636,-500.0,0.00014155,2]
[353042089,1739512243646,-500.0,0.00014155,2]
[353042090,1739512243655,-500.0,0.00014155,2]
[353042091,1739512243664,-500.0,0.00014155,2]
[353042092,1739512243674,-500.0,0.00014156,2]
[353042093,1739512243685,-500.0,0.00014156,2]
[353042094,1739512243695,-500.0,0.00014156,2]
[353042095,1739512243705,-409.59,0.00014156,2]
[353042096,1739512243715,-2204.58,0.00014156,2]
[353042097,1739512243725,-500.0,0.00014156,2]
[353042098,1739512243735,-500.0,0.00014156,2]
[353042099,1739512243745,-4220.05,0.00014156,2]
[353042100,1739512243754,-1547.16,0.00014156,2]
[353042101,1739512243764,-174.389,0.00014199,2]
[353042102,1739512243774,-153.0,0.000142,2]
[353042103,1739512243784,-709.1937931,0.000142,2]
[353042104,1739512243795,-362.0499117,0.000142,2]
[353042105,1739512243804,-153.0,0.000142,2]
[353042106,1739512243815,-154.666516,0.000142,2]
[353042107,1739512243824,-215.9231093,0.000142,2]
[353042108,1739512243834,-215.9231093,0.000142,2]
[353042109,1739512243844,-153.0,0.000142,2]
[353042110,1739512243853,-154.666516,0.000142,2]
[353042111,1739512243863,-153.0,0.000142,2]
[353042112,1739512243872,-154.666516,0.000142,2]
[353042113,1739512243882,-215.9231093,0.000142,2]
[353042114,1739512243891,-153.0,0.000142,2]
[353042115,1739512243900,-500.0,0.00014236,2]
[353042116,1739512243911,-500.0,0.00014236,2]
[353042117,1739512243921,-2401.93,0.00014236,2]
[353042118,1739512243930,-500.0,0.00014236,2]
[353042119,1739512243940,-500.0,0.00014236,2]
[353042120,1739512243949,-500.0,0.00014237,2]
[353042121,1739512243960,-500.0,0.00014238,2]
[353042122,1739512243970,-500.0,0.00014238,2]
[353042123,1739512243979,-500.0,0.00014238,2]
[353042124,1739512243990,-2204.58,0.00014238,2]
[353042125,1739512244000,-500.0,0.00014238,2]
[353042126,1739512244010,-500.0,0.00014238,2]
[353042127,1739512244019,-4220.05,0.00014238,2]
[353042128,1739512244029,-1547.16,0.00014238,2]
[353042129,1739512244039,-215.9231093,0.000143,2]
[353042130,1739512244049,-153.0,0.000143,2]
[353042131,1739512244061,-154.666516,0.000143,2]
[353042132,1739512244071,-153.0,0.000143,2]
[353042133,1739512244080,-153.0,0.000143,2]
[353042134,1739512244090,-154.666516,0.000143,2]
[353042135,1739512244100,-153.0,0.000143,2]
[353042136,1739512244110,-7544.71272086,0.00014318,5]
[353042137,1739512244119,-5790.22723128,0.00014319,5]
[353042138,1739512244132,-5116.61707731,0.00014319,5]
[353042139,1739512244148,-1050.0,0.00014319,5]
[353042164,1739512246003,-11217.84354005,0.00014319,5]
[353042165,1739512246012,-605.45,0.00014319,2]
[353042166,1739512246022,-500.0,0.00014319,2]
[353042167,1739512246031,-500.0,0.00014319,2]
[353042168,1739512246041,-2401.93,0.00014319,2]
[353042169,1739512246051,-500.0,0.00014319,2]
[353042170,1739512246060,-500.0,0.00014319,2]
[353042171,1739512246069,-500.0,0.00014319,2]
[353042172,1739512246079,-500.0,0.00014319,2]
[353042173,1739512246088,-500.0,0.00014319,2]
[353042174,1739512246098,-180.67656778,0.00014319,2]
[353042175,1739512246107,-243.66663079,0.00014319,2]
[353042176,1739512246117,-538.09,0.0001432,2]
[353042177,1739512246127,-500.0,0.0001432,2]
[353042178,1739512246137,-500.0,0.0001432,2]
[353042179,1739512246147,-2204.58,0.0001432,2]
[353042180,1739512246156,-500.0,0.0001432,2]
[353042181,1739512246165,-500.0,0.0001432,2]
[353042182,1739512246175,-4220.05,0.0001432,2]
[353042183,1739512246184,-1381.49067049,0.0001432,2]
[353042184,1739512246365,-165.66932951,0.0001432,2]
[353042185,1739512246374,-538.0,0.00014351,2]
[353042186,1739512246384,-1978.56,0.00014351,2]
[353042187,1739512246393,-2293.0,0.00014351,2]
[353042188,1739512246402,-247.0,0.00014351,2]
[353042189,1739512246412,-396.0,0.00014351,2]
[353042190,1739512246422,-183.3298713,0.00014354,2]
[353042191,1739512246432,-343.0,0.000144,5]
[353042192,1739512246442,-1390.19566299,0.000144,2]
[353042195,1739513196140,-172.95260899,9.589e-05,2]
[353042205,1739513365078,-253.16866824,9.589e-05,2]
[353042238,1739513432437,-76.87872277,9.589e-05,2]
[353042240,1739513432447,-210.114372,0.00010685,2]
[353042241,1739513432457,-162.406052,0.00013699,2]
[353042242,1739513432466,-396.0,0.00013894,2]
[353042243,1739513432477,-500.0,0.00013991,2]
[353042244,1739513432487,-500.0,0.00013991,2]
[353042245,1739513432496,-500.0,0.00013997,2]
[353042246,1739513432505,-213.57154157,0.00013997,2]
[353042257,1739513438135,-338.94845843,0.00013997,2]
[353042258,1739513438145,-300.0,0.00013997,2]
[353042259,1739513438156,-500.0,0.00013997,2]
[353042260,1739513438166,-500.0,0.00013997,2]
[353042261,1739513438176,-500.0,0.00013997,2]
[353042262,1739513438186,-629.07215599,0.00013998,2]
[353042263,1739513438195,-505.77102155,0.00013998,2]
[353042264,1739513438205,-500.0,0.00013998,2]
[353042265,1739513438215,-500.0,0.00013998,2]
[353042266,1739513438225,-500.0,0.00013998,2]
[353042267,1739513438235,-500.0,0.00013998,2]
[353042268,1739513438245,-528.22492169,0.00013998,2]
[353042269,1739513438255,-455.14524824,0.00014073,2]
[353042270,1739513438265,-500.0,0.00014079,2]
[353042271,1739513438275,-2328.3,0.00014079,2]
[353042272,1739513438286,-500.0,0.00014079,2]
[353042273,1739513438295,-500.0,0.0001408,2]
[353042274,1739513438305,-500.0,0.0001408,2]
[353042275,1739513438314,-500.0,0.0001408,2]
[353042276,1739513438323,-500.0,0.0001408,2]
[353042277,1739513438333,-552.52,0.0001408,2]
[353042278,1739513438343,-500.0,0.0001408,2]
[353042279,1739513438353,-500.0,0.0001408,2]
[353042280,1739513438363,-500.0,0.0001408,2]
[353042281,1739513438374,-500.0,0.0001408,2]
[353042282,1739513438384,-500.0,0.00014089,2]
[353042283,1739513438394,-500.0,0.00014152,2]
[353042284,1739513438404,-500.0,0.00014152,2]
[353042285,1739513438414,-529.86715191,0.00014152,2]
[353042286,1739513438423,-500.0,0.00014152,2]
[353042287,1739513438433,-500.0,0.00014152,2]
[353042288,1739513438444,-500.0,0.00014152,2]
[353042289,1739513438454,-500.0,0.00014152,2]
[353042290,1739513438464,-500.0,0.00014152,2]
[353042291,1739513438473,-500.0,0.00014152,2]
[353042292,1739513438483,-500.0,0.00014152,2]
[353042293,1739513438493,-500.0,0.00014152,2]
[353042294,1739513438503,-500.0,0.00014152,2]
[353042295,1739513438514,-500.0,0.00014152,2]
[353042296,1739513438524,-2370.82,0.00014152,2]
[353042297,1739513438533,-158.04,0.00014152,2]
[353042298,1739513438542,-500.0,0.00014152,2]
[353042299,1739513438551,-500.0,0.00014152,2]
[353042300,1739513438561,-500.0,0.00014152,2]
[353042301,1739513438571,-1807.58,0.00014152,2]
[353042302,1739513438581,-4736.26,0.00014152,2]
[353042303,1739513438591,-500.0,0.00014152,2]
[353042304,1739513438601,-500.0,0.00014154,2]
[353042305,1739513438611,-500.0,0.00014161,2]
[353042306,1739513438620,-2328.3,0.00014161,2]
[353042307,1739513438630,-500.0,0.00014161,2]
[353042308,1739513438640,-500.0,0.00014162,2]
[353042309,1739513438649,-552.52,0.00014162,2]
[353042310,1739513438664,-500.0,0.00014162,2]
[353042311,1739513438674,-500.0,0.00014162,2]
[353042312,1739513438683,-500.0,0.00014162,2]
[353042313,1739513438693,-500.0,0.00014163,2]
[353042314,1739513438703,-500.0,0.00014163,2]
[353042315,1739513438712,-500.0,0.00014163,2]
[353042316,1739513438722,-500.0,0.00014163,2]
[353042317,1739513438731,-174.389,0.00014199,2]
[353042318,1739513438742,-215.9231093,0.000142,2]
[353042319,1739513438752,-153.9721854,0.000142,2]
[353042320,1739513438761,-154.666516,0.000142,2]
[353042321,1739513438770,-215.9231093,0.000142,2]
[353042322,1739513438780,-154.666516,0.000142,2]
[353042323,1739513438790,-153.0,0.000142,2]
[353042324,1739513438799,-154.5254904,0.000142,2]
[353042325,1739513438809,-215.9231093,0.000142,2]
[353042326,1739513438819,-215.9231093,0.000142,2]
[353042327,1739513438829,-215.414072,0.000142,2]
[353042328,1739513438839,-431.544094,0.000142,2]
[353042329,1739513438848,-2850.70456676,0.000142,2]
[353042335,1739513440394,-580.56959623,0.000142,2]
[353042336,1739513440406,-6437.95066095,0.000142,2]
[353042337,1739513440416,-500.0,0.00014234,2]
[353042338,1739513440426,-500.0,0.00014234,2]
[353042339,1739513440435,-500.0,0.00014234,2]
[353042340,1739513440445,-500.0,0.00014234,2]
[353042341,1739513440456,-500.0,0.00014234,2]
[353042342,1739513440466,-500.0,0.00014234,2]
[353042343,1739513440476,-500.0,0.00014234,2]
[353042344,1739513440485,-500.0,0.00014234,2]
[353042345,1739513440495,-500.0,0.00014234,2]
[353042346,1739513440504,-500.0,0.00014234,2]
[353042347,1739513440514,-500.0,0.00014234,2]
[353042348,1739513440523,-2370.82,0.00014234,2]
[353042349,1739513440532,-500.0,0.00014234,2]
[353042350,1739513440542,-500.0,0.00014234,2]
[353042351,1739513440551,-1807.58,0.00014234,2]
[353042352,1739513440560,-4736.26,0.00014234,2]
[353042353,1739513440570,-500.0,0.00014234,2]
[353042354,1739513440579,-500.0,0.00014236,2]
[353042355,1739513440588,-500.0,0.00014244,2]
[353042356,1739513440598,-500.0,0.00014244,2]
[353042357,1739513440613,-552.52,0.00014244,2]
[353042358,1739513440627,-2328.3,0.00014244,2]
[353042359,1739513440639,-500.0,0.00014244,2]
[353042360,1739513440648,-500.0,0.00014244,2]
[353042361,1739513440659,-500.0,0.00014245,2]
[353042362,1739513440669,-215.9231093,0.000143,2]
[353042363,1739513440679,-168.87115619,0.000143,2]
[353042364,1739513440688,-500.0,0.00014316,2]
[353042365,1739513440698,-502.52,0.00014316,2]
[353042366,1739513440707,-500.0,0.00014316,2]
[353042367,1739513440717,-500.0,0.00014316,2]
[353042368,1739513440726,-500.0,0.00014316,2]
[353042369,1739513440735,-500.0,0.00014316,2]
[353042370,1739513440744,-500.0,0.00014316,2]
[353042371,1739513440754,-500.0,0.00014316,2]
[353042372,1739513440763,-154.02041928,0.00014316,2]
[353042373,1739513440773,-500.0,0.00014316,2]
[353042374,1739513440784,-500.0,0.00014316,2]
[353042375,1739513440793,-2370.82,0.00014316,2]
[353042376,1739513440803,-500.0,0.00014316,2]
[353042377,1739513440813,-500.0,0.00014316,2]
[353042378,1739513440822,-1807.58,0.00014316,2]
[353042379,1739513440832,-4736.26,0.00014316,2]
[353042380,1739513440842,-500.0,0.00014316,2]
[353042381,1739513440851,-500.0,0.00014319,2]
[353042382,1739513440861,-500.0,0.00014326,2]
[353042383,1739513440870,-552.52,0.00014326,2]
[353042384,1739513440880,-2328.3,0.00014326,2]
[353042385,1739513440894,-500.0,0.00014326,2]
[353042386,1739513440903,-500.0,0.00014326,2]
[353042387,1739513440913,-151.464,0.00014351,2]
[353042388,1739513440922,-194.7978129,0.00014354,2]
[353042389,1739513440931,-264.242,0.00014375,2]
[353042390,1739513440941,-1970.0,0.00014375,2]
[353042391,1739513440951,-538.0,0.00014375,2]
[353042392,1739513440960,-2280.111,0.00014375,2]
[353042393,1739513440969,-500.0,0.00014399,2]
[353042394,1739513440979,-500.0,0.00014399,2]
[353042395,1739513440988,-500.0,0.00014399,2]
[353042396,1739513440997,-2370.82,0.00014399,2]
[353042397,1739513441007,-500.0,0.00014399,2]
[353042398,1739513441016,-500.0,0.00014399,2]
[353042399,1739513441026,-7548.72800211,0.00014399,2]
[353042400,1739513441035,-1807.58,0.00014399,2]
[353042401,1739513441045,-4736.26,0.00014399,2]
[353042402,1739513441055,-11587.34392432,0.000144,5]
[353042403,1739513441064,-3772.35636043,0.000144,5]
[353042404,1739513441074,-150.0,0.000144,30]
[353042405,1739513441083,-3000.0,0.000144,2]
[353042406,1739513441093,-36656.00666026,0.000144,2]
[353042407,1739513441102,-325.0,0.000144,5]
[353042408,1739513441111,-3069.00620622,0.000144,2]
[353042409,1739513441121,-84543.38691777,0.000144,2]
[353042425,1739513446224,-211.03,0.00013997,2]
[353042426,1739513446234,-17831.94285848,0.000144,2]
[353042440,1739514085638,1000.0,0.00016,120]
[353042441,1739514090559,1000.0,0.00016,120]
[353042484,1739514632585,-199.608653,0.00010685,2]
[353042485,1739514632594,-170.14,0.00010959,2]
[353042486,1739514632603,-162.406052,0.00013699,2]
[353042487,1739514632614,-174.389,0.00013797,2]
[353042488,1739514632623,-515.29,0.00013799,2]
[353042489,1739514632633,-500.0,0.00013799,2]
[353042490,1739514632643,-500.0,0.00013799,2]
[353042491,1739514632654,-160.0,0.00013799,2]
[353042492,1739514632664,-500.0,0.00013799,2]
[353042493,1739514632674,-500.0,0.00013799,2]
[353042494,1739514632685,-525.43,0.00013799,2]
[353042495,1739514632696,-500.0,0.00013799,2]
[353042496,1739514632706,-500.0,0.00013799,2]
[353042497,1739514632715,-420.93957361,0.00013799,2]
[353042502,1739514638267,-151.39042639,0.00013799,2]